[Event "EYCC Open-U18 2019"]
[Site "Bratislava"]
[Date "2019.08.04"]
[Round "3.1"]
[White "Hakobyan, Aram"]
[Black "Fus, Jakub"]
[Result "1-0"]
[ECO "E16"]
[WhiteElo "2568"]
[BlackElo "2341"]
[Annotator "ChessBase"]
[PlyCount "109"]
[EventDate "2019.08.02"]
[EventType "swiss"]
[EventCountry "SVK"]
[SourceTitle "playchess.com"]
[Source "ChessBase"]
[SourceQuality "1"]
[TimeControl "40/5400+30:1800+30"]

1. Nf3 {[%emt 0:00:00]} Nf6 {[%emt 0:00:00]} 2. c4 {[%emt 0:00:00]} e6 {[%emt 0:01:01]} 3. d4 {[%emt 0:00:00]} b6 {[%emt 0:00:22]} 4. g3 {[%emt 0:00:06]} Bb7 {[%emt 0:00:21]} 5. Bg2 {[%emt 0:00:02]} Bb4+ {[%emt 0:00:28]} 6. Bd2 {[%emt 0:00:05]} a5 {[%emt 0:00:41]} 7. O-O {[%emt 0:00:05]} O-O {[%emt 0:00:20]} 8. Bf4 {[%emt 0:00:03]} Be7 {[%emt 0:00:40]} 9. Qc2 {[%emt 0:00:02]} Na6 {[%emt 0:02:15]} 10. Nc3 {[%emt 0:00:55]} d5 {[%emt 0:02:15]} 11. Ne5 {[%emt 0:05:42]} Qc8 {[%emt 0:11:45]} 12. Qa4 {[%emt 0:08:34]} c5 {[%emt 0:05:12]} 13. cxd5 {[%emt 0:04:30]} exd5 {[%emt 0:01:35]} 14. Bg5 {[%emt 0:11:05]} Rd8 {[%emt 0:05:00]} 15. Rac1 {[%emt 0:12:18]} Qe6 {[%emt 0:02:27]} 16. e3 {[%emt 0:06:51]} h6 {[%emt 0:15:21]} 17. Bxf6 {[%emt 0:00:03]} Bxf6 {[%emt 0:00:14]} 18. f4 {[%emt 0:00:08]} Nc7 {[%emt 0:03:14]} 19. Qd1 {[%emt 0:04:15]} Qe7 {[%emt 0:08:39]} 20. Qh5 {[%emt 0:04:43]} Ne6 {[%emt 0:05:25]} 21. Rcd1 {[%emt 0:02:45]} Rac8 {[%emt 0:02:26]} 22. Bh3 {[%emt 0:04:17]} Qe8 {[%emt 0:10:50]} 23. Rf2 {[%emt 0:04:42]} Rc7 {[%emt 0:02:02]} 24. Ng4 {[%emt 0:02:14]} Qe7 {[%emt 0:01:54]} 25. Nb5 {[%emt 0:02:04]} Rcc8 {[%emt 0:01:17]} 26. Qf5 {[%emt 0:02:23]} Ba6 {[%emt 0:06:57]} 27. Nc3 {[%emt 0:02:50]} Bb7 {[%emt 0:03:25]} 28. Re2 {[%emt 0:11:12]} c4 {[%emt 0:01:50]} 29. Bg2 {[%emt 0:01:03]} Nc7 {[%emt 0:02:58]} 30. e4 {[%emt 0:02:43]} Qe6 {[%emt 0:00:18]} 31. Qh5 {[%emt 0:04:43]} g6 {[%emt 0:00:44]} 32. exd5 {[%emt 0:02:54]} gxh5 {[%emt 0:00:20]} 33. dxe6 {[%emt 0:00:37]} hxg4 {[%emt 0:00:07]} 34. Bxb7 {[%emt 0:00:20]} Rb8 {[%emt 0:00:37]} 35. e7 {[%emt 0:00:56]} Rd7 {[%emt 0:02:04]} 36. Nd5 {[%emt 0:01:45]} Nxd5 {[%emt 0:01:16]} 37. e8=Q+ {[%emt 0:00:11]} Rxe8 {[%emt 0:00:03]} 38. Rxe8+ {[%emt 0:00:05]} Kg7 {[%emt 0:00:03]} 39. Bc6 {[%emt 0:00:58]} Rd6 {[%emt 0:00:03]} 40. Bxd5 {[%emt 0:00:00]} Rxd5 {[%emt 0:00:00]} 41. Kf1 {[%emt 0:03:20]} Rxd4 {[%emt 0:02:05]} 42. Rxd4 {[%emt 0:01:27]} Bxd4 {[%emt 0:00:04]} 43. Re4 {[%emt 0:01:11]} Bxb2 {[%emt 0:00:06]} 44. Rxc4 {[%emt 0:00:02]} Ba3 {[%emt 0:01:25]} 45. Rc6 {[%emt 0:03:15]} Bc5 {[%emt 0:00:48]} 46. Ke2 {[%emt 0:01:41]} Bg1 {[%emt 0:00:34]} 47. Rc1 {[%emt 0:01:17]} Bd4 {[%emt 0:00:09]} 48. Kd3 {[%emt 0:00:05]} Bf2 {[%emt 0:00:17]} 49. Ke4 {[%emt 0:00:23]} Kg6 {[%emt 0:01:29]} 50. Rc6+ {[%emt 0:00:55]} f6 {[%emt 0:00:08]} 51. f5+ {[%emt 0:00:56]} Kg5 {[%emt 0:00:27]} 52. Rc8 {[%emt 0:00:08]} Bg1 {[%emt 0:00:15]} 53. Rg8+ {[%emt 0:00:44]} Kh5 {[%emt 0:00:04]} 54. Kf4 {[%emt 0:00:20]} Bxh2 {[%emt 0:00:07]} 55. Rxg4 {[%emt 0:00:08]} 1-0

[Event "EYCC Open-U18 2019"]
[Site "Bratislava"]
[Date "2019.08.04"]
[Round "3.2"]
[White "Chylewski, Patryk"]
[Black "Bjerre, Jonas Buhl"]
[Result "1/2-1/2"]
[ECO "E04"]
[WhiteElo "2376"]
[BlackElo "2503"]
[Annotator "ChessBase"]
[PlyCount "52"]
[EventDate "2019.08.02"]
[EventType "swiss"]
[EventCountry "SVK"]
[SourceTitle "playchess.com"]
[Source "ChessBase"]
[SourceQuality "1"]
[TimeControl "40/5400+30:1800+30"]

1. d4 {[%emt 0:00:00]} Nf6 {[%emt 0:00:00]} 2. c4 {[%emt 0:00:00]} e6 {[%emt 0:00:00]} 3. g3 {[%emt 0:00:00]} d5 {[%emt 0:00:12]} 4. Nf3 {[%emt 0:00:00]} dxc4 {[%emt 0:00:23]} 5. Bg2 {[%emt 0:00:00]} c6 {[%emt 0:00:26]} 6. Ne5 {[%emt 0:00:41]} Bb4+ {[%emt 0:00:28]} 7. Bd2 {[%emt 0:01:33]} Be7 {[%emt 0:00:18]} 8. e3 {[%emt 0:00:26]} b5 {[%emt 0:01:09]} 9. Nxc6 {[%emt 0:00:11]} Nxc6 {[%emt 0:00:16]} 10. Bxc6+ {[%emt 0:00:05]} Bd7 {[%emt 0:00:11]} 11. Bxa8 {[%emt 0:00:06]} Qxa8 {[%emt 0:00:06]} 12. O-O {[%emt 0:00:09]} e5 {[%emt 0:05:24]} 13. f3 {[%emt 0:00:51]} e4 {[%emt 0:03:35]} 14. Ba5 {[%emt 0:11:10]} exf3 {[%emt 0:17:50]} 15. Qxf3 {[%emt 0:07:35]} Bc6 {[%emt 0:02:06]} 16. Qf5 {[%emt 0:02:24]} O-O {[%emt 0:14:36]} 17. Nd2 {[%emt 0:03:32]} b4 {[%emt 0:16:35]} 18. Rae1 {[%emt 0:14:15]} Rb8 {[%emt 0:03:59]} 19. Qc2 {[%emt 0:02:21]} Rb5 {[%emt 0:02:29]} 20. Bc7 {[%emt 0:02:33]} c3 {[%emt 0:05:32]} 21. bxc3 {[%emt 0:05:23]} bxc3 {[%emt 0:00:11]} 22. Qxc3 {[%emt 0:18:01]} Nd5 {[%emt 0:01:39]} 23. Qc2 {[%emt 0:02:14]} Qb7 {[%emt 0:09:26]} 24. Rc1 {[%emt 0:08:33]} Nb4 {[%emt 0:01:32]} 25. Qc4 {[%emt 0:02:40]} Bd5 {[%emt 0:00:11]} 26. Qe2 {[%emt 0:00:17]} Nxa2 {[%emt 0:02:31]} 1/2-1/2

[Event "EYCC Open-U18 2019"]
[Site "Bratislava"]
[Date "2019.08.04"]
[Round "3.3"]
[White "Pantzar, Milton"]
[Black "Vrolijk, Liam"]
[Result "1/2-1/2"]
[ECO "E48"]
[WhiteElo "2357"]
[BlackElo "2478"]
[Annotator "ChessBase"]
[PlyCount "72"]
[EventDate "2019.08.02"]
[EventType "swiss"]
[EventCountry "SVK"]
[SourceTitle "playchess.com"]
[Source "ChessBase"]
[SourceQuality "1"]
[TimeControl "40/5400+30:1800+30"]

1. d4 {[%emt 0:00:00]} Nf6 {[%emt 0:00:00]} 2. c4 {[%emt 0:00:00]} e6 {[%emt 0:00:00]} 3. Nc3 {[%emt 0:00:00]} Bb4 {[%emt 0:00:00]} 4. e3 {[%emt 0:00:12]} O-O {[%emt 0:00:26]} 5. Bd3 {[%emt 0:00:16]} d5 {[%emt 0:00:15]} 6. cxd5 {[%emt 0:00:33]} exd5 {[%emt 0:00:08]} 7. Nge2 {[%emt 0:00:10]} Re8 {[%emt 0:03:10]} 8. O-O {[%emt 0:00:22]} Bd6 {[%emt 0:05:32]} 9. Nf4 {[%emt 0:01:28]} Bxf4 {[%emt 0:11:37]} 10. exf4 {[%emt 0:00:05]} Nc6 {[%emt 0:10:04]} 11. Ne2 {[%emt 0:10:26]} Ne4 {[%emt 0:02:32]} 12. f3 {[%emt 0:22:03]} Nd6 {[%emt 0:01:01]} 13. g4 {[%emt 0:01:12]} h5 {[%emt 0:11:32]} 14. h3 {[%emt 0:05:58]} Qf6 {[%emt 0:04:00]} 15. Rf2 {[%emt 0:07:54]} g6 {[%emt 0:07:21]} 16. f5 {[%emt 0:08:51]} gxf5 {[%emt 0:04:04]} 17. gxh5 {[%emt 0:19:29]} Kh8 {[%emt 0:05:28]} 18. Rg2 {[%emt 0:01:27]} Nxd4 {[%emt 0:03:52]} 19. Nxd4 {[%emt 0:11:00]} Qxd4+ {[%emt 0:02:28]} 20. Kh1 {[%emt 0:00:18]} Bd7 {[%emt 0:04:42]} 21. b3 {[%emt 0:02:38]} f6 {[%emt 0:05:22]} 22. Bb2 {[%emt 0:01:00]} Qh4 {[%emt 0:00:37]} 23. Qc1 {[%emt 0:02:27]} Nf7 {[%emt 0:03:31]} 24. Qxc7 {[%emt 0:00:33]} Rg8 {[%emt 0:03:15]} 25. Bf1 {[%emt 0:03:31]} Qxh3+ {[%emt 0:03:05]} 26. Rh2 {[%emt 0:00:24]} Qg3 {[%emt 0:01:58]} 27. Bxf6+ {[%emt 0:00:12]} Kh7 {[%emt 0:00:02]} 28. Qxg3 {[%emt 0:00:19]} Rxg3 {[%emt 0:00:02]} 29. Rg2 {[%emt 0:00:36]} Rxg2 {[%emt 0:00:27]} 30. Kxg2 {[%emt 0:00:08]} Kh6 {[%emt 0:00:53]} 31. Bd3 {[%emt 0:00:34]} Re8 {[%emt 0:02:17]} 32. Kf2 {[%emt 0:00:52]} Ne5 {[%emt 0:00:48]} 33. Rd1 {[%emt 0:00:58]} Nxd3+ {[%emt 0:03:17]} 34. Rxd3 {[%emt 0:00:02]} Bc6 {[%emt 0:00:16]} 35. Bd4 {[%emt 0:00:31]} a6 {[%emt 0:00:37]} 36. Re3 {[%emt 0:00:36]} Rxe3 {[%emt 0:01:12]} 1/2-1/2

[Event "EYCC Open-U18 2019"]
[Site "Bratislava"]
[Date "2019.08.04"]
[Round "3.4"]
[White "Salemgareev, Tagir"]
[Black "Levitskiy, Andrey"]
[Result "1/2-1/2"]
[ECO "E16"]
[WhiteElo "2412"]
[BlackElo "2280"]
[Annotator "NA"]
[PlyCount "95"]
[EventDate "2019.08.02"]
[EventType "swiss"]
[EventCountry "SVK"]
[SourceTitle "playchess.com"]
[Source "ChessBase"]
[SourceQuality "1"]
[TimeControl "40/5400+30:1800+30"]

1. d4 {[%emt 0:00:00]} Nf6 {[%emt 0:00:00]} 2. c4 {[%emt 0:00:00]} e6 {[%emt 0:00:03]} 3. Nf3 {[%emt 0:00:00]} Bb4+ {[%emt 0:00:38]} 4. Bd2 {[%emt 0:00:00]} Qe7 {[%emt 0:00:16]} 5. g3 {[%emt 0:00:00]} Bxd2+ {[%emt 0:00:29]} 6. Qxd2 {[%emt 0:00:06]} Nc6 {[%emt 0:00:12]} 7. Nc3 {[%emt 0:02:45]} d5 {[%emt 0:00:19]} 8. Bg2 {[%emt 0:02:46]} dxc4 {[%emt 0:02:03]} 9. Qg5 {[%emt 0:26:00]} O-O {[%emt 0:07:37]} 10. Qb5 {[%emt 0:00:15]} Rd8 {[%emt 0:36:29]} 11. Qxc4 {[%emt 0:00:42]} e5 {[%emt 0:02:38]} 12. dxe5 {[%emt 0:00:35]} Nxe5 {[%emt 0:01:13]} 13. Nxe5 {[%emt 0:00:11]} Qxe5 {[%emt 0:00:07]} 14. O-O {[%emt 0:00:13]} c6 {[%emt 0:02:53]} 15. Qb3 {[%emt 0:03:13]} Qe7 {[%emt 0:05:43]} 16. Rad1 {[%emt 0:03:20]} Be6 {[%emt 0:02:52]} 17. Qa4 {[%emt 0:00:49]} Qc5 {[%emt 0:04:59]} 18. h3 {[%emt 0:04:20]} h6 {[%emt 0:06:25]} 19. Kh2 {[%emt 0:03:35]} Qb6 {[%emt 0:01:25]} 20. Rxd8+ {[%emt 0:01:57]} Rxd8 {[%emt 0:00:13]} 21. Qc2 {[%emt 0:00:29]} Qc5 {[%emt 0:03:07]} 22. e4 {[%emt 0:04:57]} b5 {[%emt 0:02:36]} 23. a3 {[%emt 0:08:20]} a5 {[%emt 0:00:56]} 24. Qc1 {[%emt 0:05:19]} b4 {[%emt 0:04:43]} 25. axb4 {[%emt 0:00:39]} axb4 {[%emt 0:00:10]} 26. Nb1 {[%emt 0:00:54]} Qd4 {[%emt 0:02:26]} 27. Qc2 {[%emt 0:07:56]} Bc4 {[%emt 0:03:27]} 28. Rc1 {[%emt 0:01:21]} Bd3 {[%emt 0:00:29]} 29. Qxc6 {[%emt 0:00:49]} Bxe4 {[%emt 0:05:09]} 30. Bxe4 {[%emt 0:06:29]} Nxe4 {[%emt 0:00:06]} 31. Rf1 {[%emt 0:00:07]} Nxf2 {[%emt 0:02:06]} 32. Qf3 {[%emt 0:02:41]} Ne4 {[%emt 0:00:04]} 33. Qxf7+ {[%emt 0:01:02]} Kh8 {[%emt 0:00:05]} 34. Qb3 {[%emt 0:00:14]} Re8 {[%emt 0:04:04]} 35. Qc2 {[%emt 0:06:24]} Nf6 {[%emt 0:00:43]} 36. Rd1 {[%emt 0:00:59]} Qe3 {[%emt 0:00:26]} 37. Rg1 {[%emt 0:02:23]} Ne4 {[%emt 0:00:45]} 38. Rg2 {[%emt 0:02:37]} Ng5 {[%emt 0:00:10]} 39. Nd2 {[%emt 0:00:35]} Rd8 {[%emt 0:00:27]} 40. h4 {[%emt 0:00:00]} Rxd2 {[%emt 0:00:00]} 41. Qc8+ {[%emt 0:01:27]} Kh7 {[%emt 0:00:55]} 42. hxg5 {[%emt 0:00:10]} Qxg5 {[%emt 0:01:51]} 43. Rxd2 {[%emt 0:04:47]} Qxd2+ {[%emt 0:00:09]} 44. Kh3 {[%emt 0:00:06]} Qxb2 {[%emt 0:10:28]} 45. Qf5+ {[%emt 0:00:31]} g6 {[%emt 0:00:04]} 46. Qe4 {[%emt 0:00:51]} b3 {[%emt 0:06:14]} 47. Qb7+ {[%emt 0:01:18]} Kg8 {[%emt 0:00:07]} 48. Qc8+ {[%emt 0:00:15]} 1/2-1/2

[Event "EYCC Open-U18 2019"]
[Site "Bratislava"]
[Date "2019.08.04"]
[Round "3.5"]
[White "Murzin, Volodar"]
[Black "Golikov, Daniil"]
[Result "1-0"]
[ECO "A05"]
[WhiteElo "2429"]
[BlackElo "2257"]
[Annotator "NA"]
[PlyCount "59"]
[EventDate "2019.08.02"]
[EventType "swiss"]
[EventCountry "SVK"]
[SourceTitle "playchess.com"]
[Source "ChessBase"]
[SourceQuality "1"]
[TimeControl "40/5400+30:1800+30"]

1. Nf3 {[%emt 0:00:00]} Nf6 {[%emt 0:04:42]} 2. c4 {[%emt 0:00:00]} c5 {[%emt 0:00:09]} 3. g3 {[%emt 0:02:36]} Nc6 {[%emt 0:02:04]} 4. Bg2 {[%emt 0:01:39]} g6 {[%emt 0:01:54]} 5. O-O {[%emt 0:01:16]} Bg7 {[%emt 0:00:05]} 6. d4 {[%emt 0:02:27]} cxd4 {[%emt 0:00:06]} 7. Nxd4 {[%emt 0:00:08]} O-O {[%emt 0:02:22]} 8. Nc3 {[%emt 0:00:17]} Qb6 {[%emt 0:03:55]} 9. Nc2 {[%emt 0:02:19]} d6 {[%emt 0:01:42]} 10. b3 {[%emt 0:03:29]} Be6 {[%emt 0:11:00]} 11. e4 {[%emt 0:06:30]} Qa5 {[%emt 0:04:19]} 12. Nd5 {[%emt 0:11:59]} Rab8 {[%emt 0:11:32]} 13. Bd2 {[%emt 0:01:53]} Qd8 {[%emt 0:00:18]} 14. Rc1 {[%emt 0:05:09]} Ne5 {[%emt 0:06:43]} 15. Bc3 {[%emt 0:07:08]} Nxd5 {[%emt 0:06:41]} 16. exd5 {[%emt 0:00:39]} Bf5 {[%emt 0:00:49]} 17. Nd4 {[%emt 0:07:21]} Qd7 {[%emt 0:12:25]} 18. f4 {[%emt 0:01:09]} Ng4 {[%emt 0:00:07]} 19. Re1 {[%emt 0:01:49]} Nh6 {[%emt 0:00:27]} 20. Qd2 {[%emt 0:03:00]} Rfe8 {[%emt 0:06:28]} 21. Nf3 {[%emt 0:01:49]} Bxc3 {[%emt 0:01:36]} 22. Rxc3 {[%emt 0:00:18]} Bh3 {[%emt 0:03:33]} 23. f5 {[%emt 0:05:11]} Bxg2 {[%emt 0:01:15]} 24. Qxh6 {[%emt 0:00:12]} Bxf3 {[%emt 0:00:14]} 25. Rxf3 {[%emt 0:00:01]} gxf5 {[%emt 0:01:23]} 26. Ref1 {[%emt 0:04:06]} e6 {[%emt 0:02:32]} 27. g4 {[%emt 0:04:46]} fxg4 {[%emt 0:05:59]} 28. Qg5+ {[%emt 0:00:32]} Kf8 {[%emt 0:00:01]} 29. Rf4 {[%emt 0:00:30]} exd5 {[%emt 0:01:57]} 30. Qh5 {[%emt 0:00:23]} 1-0

[Event "EYCC Open-U18 2019"]
[Site "Bratislava"]
[Date "2019.08.04"]
[Round "3.6"]
[White "Maksimovic, Bojan"]
[Black "Zarubitski, Viachaslau"]
[Result "0-1"]
[ECO "C95"]
[WhiteElo "2326"]
[BlackElo "2424"]
[Annotator "NA"]
[PlyCount "146"]
[EventDate "2019.08.02"]
[EventType "swiss"]
[EventCountry "SVK"]
[SourceTitle "playchess.com"]
[Source "ChessBase"]
[SourceQuality "1"]
[TimeControl "40/5400+30:1800+30"]

1. e4 {[%emt 0:00:00]} e5 {[%emt 0:00:00]} 2. Nf3 {[%emt 0:00:00]} Nc6 {[%emt 0:00:00]} 3. Bb5 {[%emt 0:00:01]} a6 {[%emt 0:00:00]} 4. Ba4 {[%emt 0:00:20]} Nf6 {[%emt 0:00:00]} 5. O-O {[%emt 0:00:21]} Be7 {[%emt 0:00:02]} 6. Re1 {[%emt 0:00:14]} b5 {[%emt 0:00:05]} 7. Bb3 {[%emt 0:00:09]} d6 {[%emt 0:00:08]} 8. c3 {[%emt 0:00:16]} O-O {[%emt 0:00:09]} 9. h3 {[%emt 0:00:08]} Nb8 {[%emt 0:00:08]} 10. d4 {[%emt 0:01:37]} Nbd7 {[%emt 0:00:27]} 11. Nbd2 {[%emt 0:00:25]} Bb7 {[%emt 0:00:04]} 12. Bc2 {[%emt 0:01:10]} Re8 {[%emt 0:00:08]} 13. Nf1 {[%emt 0:02:53]} Bf8 {[%emt 0:00:52]} 14. Ng3 {[%emt 0:00:12]} g6 {[%emt 0:00:04]} 15. a4 {[%emt 0:03:32]} Nb6 {[%emt 0:00:37]} 16. b3 {[%emt 0:06:01]} bxa4 {[%emt 0:00:09]} 17. bxa4 {[%emt 0:00:26]} a5 {[%emt 0:00:03]} 18. Bd3 {[%emt 0:02:17]} Qc8 {[%emt 0:00:09]} 19. Ba3 {[%emt 0:07:23]} Ba6 {[%emt 0:16:42]} 20. Bxa6 {[%emt 0:06:14]} Qxa6 {[%emt 0:00:13]} 21. dxe5 {[%emt 0:00:51]} dxe5 {[%emt 0:00:07]} 22. Bxf8 {[%emt 0:00:13]} Kxf8 {[%emt 0:00:45]} 23. Qc1 {[%emt 0:00:52]} Nc4 {[%emt 0:05:02]} 24. Qh6+ {[%emt 0:01:57]} Kg8 {[%emt 0:00:26]} 25. Ng5 {[%emt 0:02:32]} Qd6 {[%emt 0:05:14]} 26. Rad1 {[%emt 0:23:40]} Qf8 {[%emt 0:00:07]} 27. Nf5 {[%emt 0:01:06]} Qxh6 {[%emt 0:09:40]} 28. Nxh6+ {[%emt 0:00:03]} Kg7 {[%emt 0:00:07]} 29. Ng4 {[%emt 0:01:02]} Nxg4 {[%emt 0:01:15]} 30. hxg4 {[%emt 0:00:03]} Nb6 {[%emt 0:12:19]} 31. Ra1 {[%emt 0:02:42]} Red8 {[%emt 0:04:41]} 32. Nf3 {[%emt 0:00:55]} f6 {[%emt 0:00:55]} 33. c4 {[%emt 0:04:53]} Nd7 {[%emt 0:01:58]} 34. g5 {[%emt 0:01:05]} Nc5 {[%emt 0:02:30]} 35. Reb1 {[%emt 0:04:04]} c6 {[%emt 0:15:29]} 36. Rb6 {[%emt 0:01:25]} Rd6 {[%emt 0:00:04]} 37. Rab1 {[%emt 0:02:47]} h6 {[%emt 0:08:09]} 38. gxf6+ {[%emt 0:06:12]} Kxf6 {[%emt 0:00:01]} 39. Rb8 {[%emt 0:01:32]} Rd8 {[%emt 0:03:06]} 40. R8b6 {[%emt 0:00:00]} Rd6 {[%emt 0:00:00]} 41. Rb8 {[%emt 0:07:07]} Rd8 {[%emt 0:05:39]} 42. R8b6 {[%emt 0:02:38]} Rdc8 {[%emt 0:00:01]} 43. Rd1 {[%emt 0:02:50]} Ke6 {[%emt 0:02:14]} 44. Rd5 {[%emt 0:03:30]} Nd7 {[%emt 0:02:48]} 45. Rxd7 {[%emt 0:00:27]} Kxd7 {[%emt 0:00:04]} 46. Nxe5+ {[%emt 0:00:10]} Kd6 {[%emt 0:00:43]} 47. f4 {[%emt 0:00:21]} g5 {[%emt 0:05:43]} 48. g3 {[%emt 0:00:47]} gxf4 {[%emt 0:02:26]} 49. gxf4 {[%emt 0:00:08]} Kc5 {[%emt 0:00:22]} 50. Rb1 {[%emt 0:04:54]} Kd4 {[%emt 0:01:29]} 51. Re1 {[%emt 0:00:12]} c5 {[%emt 0:11:47]} 52. Kf2 {[%emt 0:02:51]} Rf8 {[%emt 0:00:24]} 53. Nf3+ {[%emt 0:06:05]} Kxc4 {[%emt 0:00:20]} 54. f5 {[%emt 0:00:26]} Kb3 {[%emt 0:05:03]} 55. Ke3 {[%emt 0:01:14]} Kxa4 {[%emt 0:00:23]} 56. Kf4 {[%emt 0:00:53]} Kb3 {[%emt 0:04:02]} 57. e5 {[%emt 0:00:56]} a4 {[%emt 0:00:25]} 58. e6 {[%emt 0:05:43]} a3 {[%emt 0:00:58]} 59. e7 {[%emt 0:04:39]} Rfe8 {[%emt 0:02:39]} 60. f6 {[%emt 0:04:47]} a2 {[%emt 0:00:06]} 61. Kf5 {[%emt 0:02:37]} a1=Q {[%emt 0:04:31]} 62. Rxa1 {[%emt 0:00:08]} Rxa1 {[%emt 0:00:02]} 63. f7 {[%emt 0:00:09]} Raa8 {[%emt 0:00:05]} 64. Kf6 {[%emt 0:00:53]} Ra6+ {[%emt 0:00:26]} 65. Kf5 {[%emt 0:00:07]} Raa8 {[%emt 0:00:01]} 66. Kf6 {[%emt 0:00:12]} c4 {[%emt 0:03:59]} 67. Nd4+ {[%emt 0:02:34]} Kb2 {[%emt 0:02:08]} 68. Ne6 {[%emt 0:02:51]} c3 {[%emt 0:01:06]} 69. Nc7 {[%emt 0:00:24]} Rxe7 {[%emt 0:00:10]} 70. Kxe7 {[%emt 0:00:13]} Rh8 {[%emt 0:00:04]} 71. Kf6 {[%emt 0:00:25]} c2 {[%emt 0:00:09]} 72. Kg7 {[%emt 0:00:17]} Rd8 {[%emt 0:00:43]} 73. Ne6 {[%emt 0:00:35]} c1=Q {[%emt 0:00:21]} 0-1

[Event "EYCC Open-U18 2019"]
[Site "Bratislava"]
[Date "2019.08.04"]
[Round "3.7"]
[White "Kukas, Oliver"]
[Black "Kaasen, Tor Fredrik"]
[Result "0-1"]
[ECO "A14"]
[WhiteElo "2082"]
[BlackElo "2376"]
[Annotator "NA"]
[PlyCount "96"]
[EventDate "2019.08.02"]
[EventType "swiss"]
[EventCountry "SVK"]
[SourceTitle "playchess.com"]
[Source "ChessBase"]
[SourceQuality "1"]
[TimeControl "40/5400+30:1800+30"]

1. Nf3 {[%emt 0:00:00]} Nf6 {[%emt 0:00:52]} 2. c4 {[%emt 0:00:09]} e6 {[%emt 0:00:27]} 3. g3 {[%emt 0:01:19]} d5 {[%emt 0:00:28]} 4. Bg2 {[%emt 0:00:18]} Be7 {[%emt 0:01:01]} 5. O-O {[%emt 0:01:12]} O-O {[%emt 0:00:15]} 6. cxd5 {[%emt 0:01:09]} exd5 {[%emt 0:00:14]} 7. d3 {[%emt 0:00:15]} Re8 {[%emt 0:02:41]} 8. Qc2 {[%emt 0:01:17]} c5 {[%emt 0:03:18]} 9. e4 {[%emt 0:02:37]} Nc6 {[%emt 0:01:37]} 10. a3 {[%emt 0:08:16]} Bg4 {[%emt 0:01:39]} 11. Nc3 {[%emt 0:06:31]} dxe4 {[%emt 0:04:46]} 12. dxe4 {[%emt 0:01:54]} Nd4 {[%emt 0:00:23]} 13. Nxd4 {[%emt 0:08:52]} cxd4 {[%emt 0:00:13]} 14. Nd5 {[%emt 0:01:48]} Nxd5 {[%emt 0:01:07]} 15. exd5 {[%emt 0:00:05]} Bf6 {[%emt 0:00:21]} 16. Be4 {[%emt 0:05:01]} Rc8 {[%emt 0:08:18]} 17. Qd3 {[%emt 0:01:57]} Qb6 {[%emt 0:09:12]} 18. Bd2 {[%emt 0:07:08]} g6 {[%emt 0:02:37]} 19. b4 {[%emt 0:03:05]} Qa6 {[%emt 0:04:39]} 20. b5 {[%emt 0:12:57]} Qa4 {[%emt 0:04:32]} 21. Rab1 {[%emt 0:03:30]} Qc4 {[%emt 0:01:22]} 22. f3 {[%emt 0:01:46]} Qxd3 {[%emt 0:06:43]} 23. Bxd3 {[%emt 0:00:02]} Bf5 {[%emt 0:00:09]} 24. Bxf5 {[%emt 0:00:39]} gxf5 {[%emt 0:00:04]} 25. Bb4 {[%emt 0:03:52]} Re5 {[%emt 0:11:06]} 26. b6 {[%emt 0:02:15]} axb6 {[%emt 0:00:28]} 27. d6 {[%emt 0:00:11]} Rd5 {[%emt 0:03:03]} 28. Rfc1 {[%emt 0:02:39]} Rc6 {[%emt 0:01:56]} 29. Kf2 {[%emt 0:01:30]} Be5 {[%emt 0:06:50]} 30. Ke2 {[%emt 0:02:44]} f4 {[%emt 0:02:09]} 31. Kd3 {[%emt 0:01:16]} f5 {[%emt 0:00:22]} 32. gxf4 {[%emt 0:01:13]} Bxf4 {[%emt 0:00:29]} 33. Rc4 {[%emt 0:00:24]} Bxd6 {[%emt 0:03:22]} 34. Rg1+ {[%emt 0:02:52]} Kf7 {[%emt 0:01:06]} 35. Rg2 {[%emt 0:03:21]} Be5 {[%emt 0:03:08]} 36. f4 {[%emt 0:03:47]} Bxf4 {[%emt 0:03:22]} 37. Rxd4 {[%emt 0:00:06]} Rxd4+ {[%emt 0:00:38]} 38. Kxd4 {[%emt 0:00:01]} Re6 {[%emt 0:00:21]} 39. Kc4 {[%emt 0:01:47]} Be3 {[%emt 0:00:26]} 40. Kd3 {[%emt 0:00:00]} f4 {[%emt 0:00:00]} 41. Ke2 {[%emt 0:04:11]} Rg6 {[%emt 0:02:39]} 42. Rxg6 {[%emt 0:00:02]} Kxg6 {[%emt 0:00:17]} 43. Kf3 {[%emt 0:00:07]} Kf5 {[%emt 0:00:47]} 44. a4 {[%emt 0:08:39]} Ke5 45. h4 Kd5 {[%emt 0:05:04]} 46. h5 {[%emt 0:01:50]} Kc4 {[%emt 0:00:11]} 47. Bd6 {[%emt 0:00:19]} Kb3 {[%emt 0:00:06]} 48. Bxf4 Bxf4 0-1

[Event "EYCC Open-U18 2019"]
[Site "Bratislava"]
[Date "2019.08.04"]
[Round "3.8"]
[White "Vardanyan, Aras"]
[Black "Baenziger, Fabian"]
[Result "0-1"]
[ECO "D20"]
[WhiteElo "2027"]
[BlackElo "2352"]
[Annotator "NA"]
[PlyCount "68"]
[EventDate "2019.08.02"]
[EventType "swiss"]
[EventCountry "SVK"]
[SourceTitle "playchess.com"]
[Source "ChessBase"]
[SourceQuality "1"]
[TimeControl "40/5400+30:1800+30"]

1. d4 {[%emt 0:00:00]} d5 {[%emt 0:00:00]} 2. c4 {[%emt 0:00:19]} dxc4 {[%emt 0:00:19]} 3. e4 {[%emt 0:00:16]} Nf6 {[%emt 0:00:14]} 4. e5 {[%emt 0:00:06]} Nd5 {[%emt 0:00:04]} 5. Bxc4 {[%emt 0:00:12]} Nb6 {[%emt 0:01:53]} 6. Bd3 {[%emt 0:00:07]} Nc6 {[%emt 0:00:17]} 7. Ne2 {[%emt 0:00:32]} Bg4 {[%emt 0:00:31]} 8. f3 {[%emt 0:00:19]} Be6 {[%emt 0:01:22]} 9. Nbc3 {[%emt 0:04:24]} Qd7 {[%emt 0:01:02]} 10. Ne4 {[%emt 0:04:09]} Bd5 {[%emt 0:01:51]} 11. Be3 {[%emt 0:06:27]} e6 {[%emt 0:02:24]} 12. O-O {[%emt 0:04:25]} Nb4 {[%emt 0:09:05]} 13. Bb1 {[%emt 0:02:32]} a5 {[%emt 0:13:40]} 14. a3 {[%emt 0:09:02]} Nc6 {[%emt 0:00:55]} 15. Bd3 {[%emt 0:00:57]} a4 {[%emt 0:07:14]} 16. Bb5 {[%emt 0:01:57]} Ra5 {[%emt 0:11:04]} 17. N2c3 {[%emt 0:05:08]} Bb3 {[%emt 0:12:45]} 18. Qc1 {[%emt 0:04:17]} Rxb5 {[%emt 0:03:06]} 19. Nxb5 {[%emt 0:00:13]} Bc4 {[%emt 0:00:04]} 20. Nec3 {[%emt 0:00:17]} Na5 {[%emt 0:01:09]} 21. d5 {[%emt 0:03:12]} Bxb5 {[%emt 0:07:24]} 22. dxe6 {[%emt 0:00:26]} fxe6 {[%emt 0:00:41]} 23. Nxb5 {[%emt 0:00:20]} Qxb5 {[%emt 0:07:06]} 24. Qxc7 {[%emt 0:00:34]} Nd5 {[%emt 0:00:08]} 25. Qc8+ {[%emt 0:00:46]} Kf7 {[%emt 0:00:05]} 26. Bf2 {[%emt 0:02:55]} Qe8 {[%emt 0:06:17]} 27. Qc2 {[%emt 0:01:23]} Qc6 {[%emt 0:00:14]} 28. Qe4 {[%emt 0:00:24]} Nb3 {[%emt 0:00:36]} 29. Rad1 {[%emt 0:00:49]} Be7 {[%emt 0:05:15]} 30. f4 {[%emt 0:01:19]} g6 {[%emt 0:00:24]} 31. g4 {[%emt 0:01:27]} Rg8 {[%emt 0:00:19]} 32. Rd3 {[%emt 0:03:11]} Bc5 {[%emt 0:06:16]} 33. Rh3 {[%emt 0:00:18]} Rg7 {[%emt 0:01:22]} 34. Rg3 {[%emt 0:01:51]} Nd2 {[%emt 0:00:15]} 0-1